bitfinex-derivatives/quotes_BTCF0:USTF0_20260214
["timestamp","ask_amount","ask_price","bid_price","bid_amount"]
[1771060453743,0.01435,69725.0,69718.0,0.028751]
[1771060454342,0.157828,69734.0,69711.0,0.01452971]
[1771060454343,0.0144,69724.0,69716.0,0.0144]
[1771060454538,0.014348,69733.0,69721.0,0.01435]
[1771060454745,0.014349,69730.0,69723.0,0.01435]
[1771060454939,0.014349,69729.0,69723.0,0.01435]
[1771060455139,0.014349,69729.0,69721.0,0.01435]
[1771060455140,0.014349,69729.0,69722.0,0.01435]
[1771060455351,0.028698,69729.0,69722.0,0.01435]
[1771060455638,0.028698,69729.0,69715.0,0.41792551]
[1771060455639,0.46566204,69724.0,69717.0,0.014351]
[1771060455846,0.014349,69726.0,69719.0,0.014351]
[1771060456044,0.02875,69725.0,69718.0,0.014351]
[1771060456247,0.01435,69724.0,69718.0,0.014351]
[1771060456547,0.0144,69725.0,69724.0,0.01435]
[1771060456846,0.00015118,69725.0,69720.0,0.01435]
[1771060457141,0.00015118,69725.0,69721.0,0.01435]
[1771060457545,0.0144,69728.0,69723.0,0.01435]
[1771060457739,0.0144,69728.0,69724.0,0.01435]
[1771060457938,0.028749,69728.0,69722.0,0.01435]
[1771060458147,0.0144,69728.0,69724.0,0.01435]
[1771060458547,0.028749,69728.0,69722.0,0.01435]
[1771060459341,0.014349,69727.0,69722.0,0.01435]
[1771060459840,0.0144,69728.0,69724.0,0.014349]
[1771060460037,0.0144,69731.0,69728.0,0.014349]
[1771060460638,0.157828,69734.0,69729.0,0.014348]
[1771060460839,0.45131204,69755.0,69734.0,0.41792551]
[1771060461040,0.45131204,69755.0,69710.0,0.14406916]
[1771060461041,0.014344,69752.0,69741.0,0.014346]
[1771060461245,0.59479204,69759.0,69741.0,0.014346]
[1771060461246,0.014345,69747.0,69741.0,0.014346]
[1771060462348,0.0144,69751.0,69743.0,0.014346]
[1771060462547,0.014345,69749.0,69741.0,0.014346]
[1771060462845,0.014344,69750.0,69744.0,0.014346]
[1771060463153,0.0144,69752.0,69747.0,0.014345]
[1771060463348,0.14348,69755.0,69744.0,0.0144]
[1771060463547,0.15788,69755.0,69750.0,0.028688]
[1771060463746,0.15788,69755.0,69744.0,0.0144]
[1771060464053,0.02147218,69755.0,69752.0,0.014344]
[1771060464350,0.02147218,69755.0,69753.0,0.014344]
[1771060464546,0.014338,69780.0,69754.0,0.014343]
[1771060464753,0.014342,69762.0,69755.0,0.014343]
[1771060465054,0.028742,69762.0,69755.0,0.014343]
[1771060465640,0.028742,69762.0,69756.0,0.014343]
[1771060468249,0.014342,69761.0,69756.0,0.014343]
[1771060468553,0.014343,69758.0,69751.0,0.043088]
[1771060468752,0.014343,69758.0,69751.0,0.028744]
[1771060468946,0.014343,69758.0,69751.0,0.043088]
[1771060469354,0.014343,69757.0,69751.0,0.028744]
[1771060469555,0.014343,69757.0,69752.0,0.014344]
[1771060469849,0.014344,69753.0,69747.0,0.014345]
[1771060470049,0.014344,69753.0,69748.0,0.028745]
[1771060470252,0.014344,69754.0,69748.0,0.028745]
[1771060470448,0.014344,69753.0,69749.0,0.0144]
[1771060470649,0.014344,69751.0,69746.0,0.14348]
[1771060470852,0.014344,69751.0,69747.0,0.0144]
[1771060472151,0.014344,69751.0,69741.0,0.014346]
[1771060472152,0.45698562,69751.0,69740.0,0.0144]
[1771060472360,0.014345,69748.0,69742.0,0.014346]
[1771060473265,0.014345,69748.0,69743.0,0.0144]
[1771060474556,0.014345,69749.0,69743.0,0.043092]
[1771060474758,0.014345,69749.0,69743.0,0.028746]
[1771060475054,0.014345,69749.0,69743.0,0.028246]
[1771060475956,0.014345,69748.0,69743.0,0.028246]
[1771060478250,0.014344,69750.0,69743.0,0.028246]
[1771060478455,0.44264162,69749.0,69743.0,0.028246]
[1771060478658,0.014345,69748.0,69743.0,0.0144]
[1771060478844,0.014345,69748.0,69742.0,0.028746]
[1771060479049,0.014345,69748.0,69742.0,0.043092]
[1771060479355,0.014345,69748.0,69731.0,0.014348]
[1771060479558,0.014345,69746.0,69741.0,0.014346]
[1771060479851,0.014345,69746.0,69741.0,0.028746]
[1771060480558,0.02869,69748.0,69742.0,0.014346]
[1771060480757,0.014345,69748.0,69743.0,0.014346]
[1771060481165,0.028745,69749.0,69743.0,0.014346]
[1771060481358,0.028745,69749.0,69744.0,0.014346]
[1771060482556,0.014345,69748.0,69743.0,0.014346]
[1771060482955,0.028745,69749.0,69744.0,0.014346]
[1771060484057,0.0144,69749.0,69747.0,0.014345]
[1771060484254,0.0144,69749.0,69745.0,0.014345]
[1771060484450,0.0144,69749.0,69744.0,0.014345]
[1771060484654,0.028745,69749.0,69743.0,0.014346]
[1771060485051,0.0144,69749.0,69743.0,0.028692]
[1771060485257,0.028745,69749.0,69743.0,0.014346]
[1771060486565,0.014345,69747.0,69742.0,0.0144]
[1771060486862,0.014345,69746.0,69742.0,0.0144]
[1771060487451,0.014345,69746.0,69739.0,0.014347]
[1771060487654,0.014345,69745.0,69740.0,0.028746]
[1771060487861,0.014345,69745.0,69740.0,0.043092]
[1771060488062,0.014345,69745.0,69740.0,0.028746]
[1771060488663,0.014345,69745.0,69740.0,0.043092]
[1771060489163,0.014345,69746.0,69741.0,0.014346]
[1771060489958,0.014345,69747.0,69742.0,0.014346]
[1771060490156,0.0144,69749.0,69745.0,0.014345]
[1771060491559,0.0144,69749.0,69743.0,0.014346]
[1771060491755,0.0144,69749.0,69744.0,0.014345]
[1771060491961,0.0144,69749.0,69746.0,0.014345]
[1771060492167,0.0144,69751.0,69746.0,0.014345]
[1771060492665,0.028744,69751.0,69746.0,0.014345]
[1771060493363,0.014344,69754.0,69748.0,0.014345]
[1771060493565,0.014344,69754.0,69746.0,0.014345]
[1771060493566,0.014344,69753.0,69747.0,0.028745]
[1771060493766,0.014344,69751.0,69747.0,0.0144]
[1771060493962,0.44649327,69753.0,69742.0,0.14344]
[1771060494168,0.014345,69748.0,69743.0,0.0144]
[1771060494567,0.014345,69747.0,69741.0,0.014346]
[1771060494762,0.014345,69747.0,69742.0,0.0144]
[1771060494959,0.014345,69746.0,69740.0,0.028746]
[1771060495163,0.44649327,69748.0,69740.0,0.0144]
[1771060495372,0.44649327,69748.0,69744.0,0.014345]
[1771060495565,0.44649327,69748.0,69740.0,0.028746]
[1771060496161,0.014345,69747.0,69742.0,0.014346]
[1771060496465,0.44649327,69748.0,69744.0,0.014346]
[1771060496780,0.46083827,69748.0,69742.0,0.028692]
[1771060497071,0.46083827,69748.0,69742.0,0.014346]
[1771060497271,0.44649327,69748.0,69742.0,0.014346]
[1771060497470,0.44649327,69748.0,69740.0,0.028746]
[1771060497672,0.44649327,69748.0,69744.0,0.014345]
[1771060497974,0.46083827,69748.0,69740.0,0.028746]
[1771060498165,0.014345,69747.0,69742.0,0.014346]
[1771060498366,0.014345,69747.0,69741.0,0.014346]
[1771060498572,0.014345,69746.0,69742.0,0.014346]
[1771060498771,0.014345,69747.0,69742.0,0.014346]
[1771060498974,0.02869,69747.0,69740.0,0.028746]
[1771060499274,0.44649327,69748.0,69744.0,0.014346]
[1771060499473,0.44649327,69748.0,69742.0,0.014346]
[1771060500173,0.46083827,69748.0,69743.0,0.014346]
[1771060500475,0.014345,69745.0,69741.0,0.014346]
[1771060500663,0.014345,69745.0,69740.0,0.0144]
[1771060500862,0.014345,69746.0,69737.0,0.100544]
[1771060500863,0.014346,69741.0,69737.0,0.100544]
[1771060501068,0.014346,69741.0,69735.0,0.0144]
[1771060501274,0.46083927,69742.0,69736.0,0.014347]
[1771060501472,0.014347,69737.0,69728.0,0.014349]
[1771060501671,0.4458697,69734.0,69726.0,0.014349]
[1771060501972,0.4315217,69733.0,69729.0,0.014348]
[1771060502174,0.4315217,69733.0,69730.0,0.014348]
[1771060502375,0.4315217,69733.0,69729.0,0.014348]
[1771060502576,0.4458697,69732.0,69728.0,0.014349]
[1771060502875,0.4458697,69732.0,69727.0,0.028749]
[1771060503072,0.4315217,69732.0,69728.0,0.014349]
[1771060503274,0.4315217,69732.0,69724.0,0.0144]
[1771060503574,0.014348,69731.0,69726.0,0.014349]
[1771060503774,0.4315217,69732.0,69727.0,0.014349]
[1771060503971,0.4315217,69732.0,69726.0,0.014349]
[1771060503972,0.0144,69733.0,69732.0,0.014348]
[1771060504172,0.4315217,69749.0,69730.0,0.46531043]
[1771060504373,0.014345,69747.0,69742.0,0.014346]
[1771060504578,0.014346,69744.0,69739.0,0.014346]
[1771060504770,0.0144,69746.0,69743.0,0.014346]
[1771060504966,0.014344,69750.0,69743.0,0.014346]
[1771060505272,0.52952584,69791.0,69741.0,0.014346]
[1771060505273,0.0144,69749.0,69742.0,0.014346]
[1771060505479,0.0144,69748.0,69745.0,0.014345]
[1771060505974,0.028745,69748.0,69741.0,0.014346]
[1771060506179,0.028745,69748.0,69739.0,0.0144]
[1771060506180,0.028745,69748.0,69743.0,0.028692]
[1771060506373,0.014345,69747.0,69743.0,0.014346]
[1771060506568,0.028745,69748.0,69743.0,0.014346]
[1771060506774,0.014346,69744.0,69739.0,0.0144]
[1771060506969,0.4459217,69748.0,69734.0,0.014348]
[1771060506970,0.0144,69745.0,69734.0,0.014348]
[1771060507278,0.014346,69740.0,69735.0,0.014347]
[1771060507767,0.014346,69740.0,69735.0,0.028694]
[1771060508174,0.014347,69739.0,69734.0,0.028748]
[1771060508478,0.014346,69740.0,69735.0,0.014347]
[1771060511677,0.028746,69742.0,69736.0,0.014347]
[1771060511884,5.5e-05,69745.0,69739.0,0.014346]
[1771060512184,0.014345,69748.0,69740.0,0.014346]
[1771060512386,0.014346,69744.0,69739.0,0.014346]
[1771060512571,0.014346,69745.0,69739.0,0.014346]
[1771060512780,0.75566672,69808.0,69746.0,0.45096243]
[1771060512781,0.4315217,69765.0,69746.0,0.45096243]
[1771060512982,0.0144,69759.0,69753.0,0.014344]
[1771060513284,0.014343,69755.0,69750.0,0.010844]
[1771060513783,0.014343,69755.0,69751.0,0.0144]
[1771060513984,0.014343,69757.0,69752.0,0.014344]
[1771060514283,0.014343,69758.0,69753.0,0.014344]
[1771060514681,0.028743,69759.0,69754.0,0.014343]
[1771060514886,0.0144,69759.0,69753.0,0.014344]
[1771060515083,0.014343,69758.0,69753.0,0.014344]
[1771060515590,0.0144,69759.0,69753.0,0.014344]
[1771060515887,0.014343,69758.0,69753.0,0.014344]
[1771060516779,0.014344,69753.0,69751.0,0.0144]
[1771060518187,0.014344,69754.0,69751.0,0.0144]
[1771060519386,0.014343,69756.0,69751.0,0.028744]
[1771060519586,0.014343,69755.0,69751.0,0.028744]
[1771060520287,0.014343,69755.0,69751.0,0.0144]
[1771060520482,0.028686,69755.0,69751.0,0.0144]
[1771060520687,0.014344,69754.0,69751.0,0.0144]
[1771060521285,0.014344,69752.0,69751.0,0.0144]
[1771060521679,0.014344,69752.0,69749.0,0.0144]
[1771060522488,0.014344,69753.0,69749.0,0.0144]
[1771060524693,0.014344,69751.0,69750.0,0.0144]
[1771060524895,0.014344,69752.0,69747.0,0.014345]
[1771060525289,0.014344,69752.0,69742.0,0.014346]
[1771060525290,0.014345,69748.0,69742.0,0.014346]
[1771060525491,0.014345,69748.0,69743.0,0.014346]
[1771060525691,0.014345,69748.0,69744.0,0.0144]
[1771060525891,0.02869,69748.0,69744.0,0.0144]
[1771060526092,0.014345,69748.0,69742.0,0.014346]
[1771060526392,0.014345,69748.0,69740.0,0.028746]
[1771060526594,0.014345,69747.0,69742.0,0.014346]
[1771060526985,0.014345,69748.0,69743.0,0.0144]
[1771060527191,0.014344,69751.0,69744.0,0.0144]
[1771060527495,0.014344,69751.0,69746.0,0.014345]
[1771060527696,0.014345,69749.0,69744.0,0.0144]
[1771060527898,0.014345,69748.0,69744.0,0.0144]
[1771060528300,0.0144,69750.0,69743.0,0.028746]
[1771060528600,0.0144,69750.0,69746.0,0.014345]
[1771060528802,0.0144,69750.0,69744.0,0.014345]
[1771060529102,0.014345,69749.0,69744.0,0.014346]
[1771060529293,0.014345,69748.0,69743.0,0.0144]
[1771060529489,0.4315217,69745.0,69735.0,0.157827]
[1771060529695,0.014346,69741.0,69731.0,0.014348]
[1771060529999,0.014347,69736.0,69729.0,0.014348]
[1771060530202,0.014347,69738.0,69732.0,0.014348]
[1771060530701,0.014347,69737.0,69732.0,0.014348]
[1771060531101,0.028694,69737.0,69732.0,0.014348]
[1771060531395,0.014347,69737.0,69732.0,0.014348]
[1771060532401,0.014347,69737.0,69726.0,0.14348]
[1771060532402,0.014348,69731.0,69721.0,0.01435]
[1771060532593,0.014348,69731.0,69725.0,0.0144]
[1771060532792,0.014348,69731.0,69726.0,0.0144]
[1771060533002,0.014348,69732.0,69727.0,0.014349]
[1771060533297,0.45854008,69733.0,69728.0,0.028749]
[1771060533495,0.014348,69733.0,69728.0,0.028749]
[1771060534198,0.014348,69733.0,69728.0,0.0144]
[1771060534501,0.014348,69733.0,69725.0,0.014349]
[1771060534703,0.014348,69733.0,69727.0,0.014349]
[1771060535500,0.014348,69733.0,69727.0,0.028698]
[1771060535710,0.014348,69733.0,69727.0,0.014349]
[1771060536291,0.45854008,69731.0,69725.0,0.014349]
[1771060536496,0.014349,69730.0,69724.0,0.02875]
[1771060536696,0.014349,69729.0,69724.0,0.0144]
[1771060537599,0.014349,69729.0,69720.0,0.01435]
[1771060537801,0.014349,69729.0,69714.0,0.014352]
[1771060537802,0.014349,69729.0,69724.0,0.01435]
[1771060538001,0.014349,69729.0,69721.0,0.0144]
[1771060538203,0.014349,69729.0,69723.0,0.01435]
[1771060538401,0.014349,69729.0,69724.0,0.01435]
[1771060538599,0.014349,69728.0,69722.0,0.01435]
[1771060538798,0.014349,69727.0,69722.0,0.0144]
[1771060539201,0.01435,69723.0,69708.0,0.014353]
[1771060539404,0.01435,69725.0,69719.0,0.014351]
[1771060539598,0.01435,69725.0,69717.0,0.014351]
[1771060539908,0.47288908,69726.0,69720.0,0.01435]
[1771060540210,0.47288908,69726.0,69709.0,0.14348]
[1771060540211,0.4325558,69721.0,69712.0,0.014352]
[1771060540414,0.4325558,69721.0,69671.0,0.86191981]
[1771060540415,0.0144,69724.0,69714.0,0.4695703]
[1771060540600,0.0144,69724.0,69718.0,0.014351]
[1771060541004,0.01435,69723.0,69714.0,0.0144]
[1771060541208,0.014351,69716.0,69713.0,0.0144]
[1771060541408,0.014352,69715.0,69713.0,9.2e-05]
[1771060542000,0.014352,69715.0,69712.0,0.0144]
[1771060542213,0.014352,69715.0,69709.0,0.0144]
[1771060542409,0.014352,69713.0,69709.0,0.0144]
[1771060542611,0.014352,69712.0,69708.0,0.0144]
[1771060542817,0.028705,69711.0,69705.0,0.014354]
[1771060543006,0.028752,69711.0,69701.0,0.028754]
[1771060543510,0.028752,69711.0,69705.0,0.014354]
[1771060544109,0.0144,69711.0,69705.0,0.014354]
[1771060544413,0.028752,69711.0,69705.0,0.014354]
[1771060544616,0.014353,69709.0,69702.0,0.014354]
[1771060544802,0.014353,69710.0,69702.0,0.014354]
[1771060545008,0.014353,69707.0,69701.0,0.028754]
[1771060545311,0.4469088,69710.0,69697.0,0.014355]
[1771060545312,0.028753,69708.0,69697.0,0.014355]
[1771060545514,0.014353,69707.0,69699.0,0.014355]
[1771060545714,0.014354,69703.0,69698.0,0.0144]
[1771060546310,0.014354,69701.0,69698.0,0.0144]
[1771060546913,0.014354,69701.0,69695.0,0.028755]
[1771060547307,0.0144,69704.0,69700.0,0.014354]
[1771060547507,0.0144,69704.0,69699.0,0.014355]
[1771060547508,0.0144,69704.0,69701.0,0.014354]
[1771060547908,0.0144,69704.0,69699.0,0.014355]
[1771060548415,0.014354,69703.0,69697.0,0.014355]
[1771060548710,0.014354,69702.0,69697.0,0.014355]
[1771060549115,0.028754,69704.0,69699.0,0.014355]
[1771060549316,0.028754,69704.0,69697.0,0.014355]
[1771060549708,0.4325558,69712.0,69700.0,0.014354]
[1771060549910,0.014353,69707.0,69702.0,0.014354]
[1771060550115,0.0144,69706.0,69702.0,0.014354]
[1771060550614,0.014353,69707.0,69702.0,0.014354]
[1771060550810,0.028753,69706.0,69701.0,0.014354]
[1771060551116,0.0144,69705.0,69701.0,0.014354]
[1771060551320,0.028754,69705.0,69695.0,0.0144]
[1771060551509,0.014354,69703.0,69695.0,0.0144]
[1771060551812,0.014354,69701.0,69696.0,0.014355]
[1771060552016,0.028754,69702.0,69697.0,0.014355]
[1771060552221,0.0144,69702.0,69699.0,0.014355]
[1771060552510,0.157872,69713.0,69703.0,0.014354]
[1771060552717,0.014353,69709.0,69698.0,0.4695703]
[1771060552916,0.0144,69708.0,69698.0,0.4695703]
[1771060553116,0.0144,69708.0,69697.0,0.0144]
[1771060553117,0.0144,69708.0,69705.0,0.014354]
[1771060553312,0.0144,69707.0,69703.0,0.014354]
[1771060553618,0.0144,69707.0,69704.0,0.014354]
[1771060554018,0.0144,69707.0,69703.0,0.014354]
[1771060554414,0.014352,69711.0,69705.0,0.014354]
[1771060554717,0.028753,69710.0,69704.0,0.014354]
[1771060554917,0.0144,69709.0,69705.0,0.014353]
[1771060555119,0.0144,69708.0,69705.0,0.014353]
[1771060555422,0.0144,69709.0,69705.0,0.014354]
[1771060555721,0.0144,69710.0,69707.0,0.014353]
[1771060556111,0.157872,69713.0,69705.0,0.014354]
[1771060556112,0.028752,69711.0,69706.0,0.014353]
[1771060556308,0.157872,69713.0,69707.0,0.014353]
[1771060556620,0.014352,69711.0,69707.0,0.014353]
[1771060557420,0.014353,69707.0,69704.0,0.0144]
[1771060557618,0.4469078,69711.0,69704.0,0.0144]
[1771060557619,0.014353,69708.0,69704.0,0.0144]
[1771060557813,0.014353,69708.0,69702.0,0.028708]
[1771060558512,0.014353,69707.0,69702.0,0.014354]
[1771060558917,0.014353,69706.0,69701.0,0.028754]
[1771060559113,0.014353,69707.0,69701.0,0.0144]
[1771060559322,0.014353,69707.0,69701.0,0.028754]
[1771060559716,0.028706,69707.0,69701.0,0.028754]
[1771060559923,0.014353,69707.0,69701.0,0.028754]
[1771060560217,0.014353,69706.0,69701.0,0.028754]
[1771060560518,0.014353,69707.0,69701.0,0.0144]
[1771060560714,0.014353,69706.0,69701.0,0.028754]
[1771060560920,0.014353,69707.0,69701.0,0.028754]
[1771060561121,0.014353,69707.0,69702.0,0.014354]
[1771060561320,0.014354,69703.0,69701.0,0.0144]
[1771060562121,0.014354,69704.0,69701.0,0.0144]
[1771060562516,0.014354,69703.0,69698.0,0.14352]
[1771060562715,0.014354,69703.0,69699.0,0.0144]
[1771060563311,0.014354,69702.0,69699.0,0.0144]
[1771060563508,0.014354,69705.0,69699.0,0.028755]
[1771060563715,0.014354,69704.0,69699.0,0.028755]
[1771060563915,0.014354,69703.0,69699.0,0.0144]
[1771060564116,0.014354,69705.0,69700.0,0.014355]
[1771060564316,0.014354,69704.0,69699.0,0.028755]
[1771060565423,0.014354,69702.0,69699.0,0.0144]
[1771060565818,0.014354,69705.0,69699.0,0.0144]
[1771060566022,0.014354,69705.0,69700.0,0.014355]
[1771060567125,0.014354,69704.0,69699.0,0.028755]
[1771060567521,0.028708,69704.0,69699.0,0.028755]
[1771060567722,0.014354,69704.0,69699.0,0.028755]
[1771060568924,0.014354,69702.0,69699.0,0.0144]
[1771060569122,0.014354,69702.0,69698.0,0.0144]
[1771060571319,0.014354,69702.0,69697.0,0.014355]
[1771060571723,0.014354,69702.0,69697.0,0.028755]
[1771060571924,0.014354,69702.0,69697.0,0.0144]
[1771060572125,0.014355,69700.0,69697.0,0.0144]
[1771060572327,0.014355,69700.0,69696.0,0.0144]
[1771060572521,0.014354,69702.0,69696.0,0.0144]
[1771060572726,0.014354,69701.0,69696.0,0.0144]
[1771060572926,0.014354,69702.0,69697.0,0.014355]
[1771060574020,0.48627885,69705.0,69696.0,0.0144]
[1771060574329,0.014354,69702.0,69696.0,0.028755]
[1771060574627,0.014354,69701.0,69696.0,0.028755]
[1771060574828,0.014354,69702.0,69697.0,0.014355]
[1771060575029,0.014354,69704.0,69698.0,0.014355]
[1771060576122,0.014354,69703.0,69698.0,0.014355]
[1771060577730,0.014354,69703.0,69697.0,0.014355]
[1771060577933,0.014354,69702.0,69697.0,0.014355]
[1771060578134,0.028708,69702.0,69696.0,0.0144]
[1771060578429,0.028708,69702.0,69690.0,0.14356]
[1771060578430,0.014356,69695.0,69694.0,0.0144]
[1771060578621,0.014356,69695.0,69693.0,0.0144]
[1771060578818,0.014356,69695.0,69690.0,0.014357]
[1771060578819,0.014356,69695.0,69692.0,0.0144]
[1771060579425,0.14356,69705.0,69704.0,0.014354]
[1771060579628,0.0144,69714.0,69705.0,0.014354]
[1771060579828,0.014352,69711.0,69705.0,0.014354]
[1771060580025,0.014353,69710.0,69705.0,0.014354]
[1771060581235,0.014352,69711.0,69706.0,0.014353]
[1771060581729,0.014352,69712.0,69706.0,0.014353]
[1771060582233,0.014352,69711.0,69706.0,0.014353]
[1771060583636,0.014352,69713.0,69708.0,0.014353]
[1771060583835,0.47187885,69732.0,69719.0,0.014351]
[1771060584029,0.47187885,69732.0,69718.0,0.0144]
[1771060584030,0.014348,69730.0,69718.0,0.0144]
[1771060584235,0.014348,69730.0,69716.0,0.49011707]
[1771060584236,0.014348,69730.0,69724.0,0.01435]
[1771060584431,0.014348,69730.0,69720.0,0.01435]
[1771060584432,0.01435,69724.0,69723.0,0.0144]
[1771060584833,0.014349,69726.0,69719.0,0.014351]
[1771060584834,0.014349,69725.0,69719.0,0.014351]
[1771060585035,0.014349,69726.0,69720.0,0.02875]
[1771060585235,0.014349,69725.0,69721.0,0.0144]
[1771060585542,0.014349,69727.0,69721.0,0.02875]
[1771060585731,0.0144,69728.0,69722.0,0.01435]
[1771060586037,0.014349,69727.0,69722.0,0.01435]
[1771060587336,0.014349,69726.0,69721.0,0.02875]
[1771060587632,0.00932488,69724.0,69721.0,0.0144]
[1771060588236,0.01435,69723.0,69721.0,0.0144]
[1771060588434,0.01435,69721.0,69719.0,0.0144]
[1771060588635,0.01435,69721.0,69716.0,0.014351]
[1771060588840,0.01435,69721.0,69717.0,0.0144]
[1771060589139,0.01435,69721.0,69716.0,0.014351]
[1771060589331,0.01435,69721.0,69714.0,0.14356]
[1771060589532,0.01435,69721.0,69716.0,0.014351]
[1771060589932,0.01435,69721.0,69716.0,0.028702]
[1771060590141,0.01435,69721.0,69716.0,0.014351]
[1771060590638,0.01435,69721.0,69717.0,0.014351]
[1771060590937,0.014352,69715.0,69714.0,0.14356]
[1771060591149,0.014351,69717.0,69713.0,0.0144]
[1771060593144,0.0144,69722.0,69718.0,0.014351]
[1771060593333,0.0144,69722.0,69719.0,0.014351]
[1771060593539,0.00634056,69722.0,69719.0,0.014351]
[1771060593939,0.157869,69727.0,69721.0,0.01435]
[1771060593940,0.14352,69727.0,69721.0,0.01435]
[1771060594245,0.028749,69726.0,69721.0,0.01435]
[1771060594741,0.028749,69726.0,69721.0,0.0287]
[1771060594945,0.0144,69726.0,69723.0,0.01435]
[1771060595334,0.014348,69731.0,69723.0,0.01435]
[1771060595543,0.014349,69728.0,69722.0,0.01435]
[1771060595738,0.014349,69728.0,69723.0,0.01435]
[1771060596538,0.014349,69726.0,69721.0,0.01435]
[1771060596743,0.0144,69730.0,69720.0,0.0144]
[1771060596939,0.01435,69723.0,69720.0,0.0144]
[1771060597436,0.0287,69723.0,69720.0,0.0144]
[1771060597635,0.01435,69722.0,69720.0,0.0144]
[1771060597951,0.01435,69725.0,69720.0,0.0144]
[1771060597952,0.01435,69723.0,69720.0,0.0144]
[1771060599044,0.01435,69722.0,69720.0,0.0144]
[1771060599246,0.01435,69721.0,69719.0,0.0144]
[1771060599544,0.01435,69723.0,69714.0,0.157872]
[1771060599545,0.01435,69723.0,69718.0,0.0144]
[1771060600250,0.01435,69722.0,69718.0,0.0144]
[1771060601046,0.01435,69722.0,69718.0,0.028751]
[1771060601546,0.01435,69723.0,69718.0,0.028751]
[1771060601742,0.01435,69722.0,69717.0,0.0144]
[1771060602046,0.01435,69723.0,69717.0,0.014636]
[1771060602247,0.01435,69723.0,69718.0,0.014351]
[1771060602748,0.01435,69722.0,69717.0,0.014636]
[1771060603442,0.01435,69723.0,69717.0,0.0144]
[1771060603647,0.014351,69719.0,69717.0,0.0144]
[1771060604251,0.014351,69719.0,69714.0,0.014352]
[1771060604842,0.014351,69717.0,69712.0,0.028752]
[1771060605049,0.47227953,69715.0,69708.0,0.014353]
[1771060605248,0.028751,69717.0,69710.0,0.014352]
[1771060605442,0.014351,69716.0,69710.0,0.014352]
[1771060605653,0.014352,69714.0,69709.0,0.014353]
[1771060606752,0.014352,69714.0,69708.0,0.028753]
[1771060606753,0.014352,69715.0,69710.0,0.014353]
[1771060609646,0.014351,69716.0,69710.0,0.014353]
[1771060610152,0.0144,69717.0,69702.0,0.0144]
[1771060610153,0.014353,69708.0,69702.0,0.0144]
[1771060610353,0.014353,69710.0,69703.0,0.014354]
[1771060610554,0.014353,69708.0,69703.0,0.014354]
[1771060610953,0.014353,69708.0,69703.0,1e-06]
[1771060611349,0.014353,69709.0,69703.0,0.028709]
[1771060611750,0.014353,69709.0,69703.0,0.014355]
[1771060612144,0.014353,69709.0,69703.0,0.028709]
[1771060612347,0.014353,69708.0,69703.0,0.014355]
[1771060615155,0.47232753,69708.0,69703.0,1e-06]
[1771060615358,0.014354,69705.0,69699.0,0.0144]
[1771060615564,0.157871,69716.0,69705.0,0.014353]
[1771060615565,0.0144,69710.0,69705.0,0.014353]
[1771060615755,0.0144,69710.0,69707.0,0.014353]
[1771060615955,0.0144,69710.0,69707.0,0.028706]
[1771060616156,0.0144,69710.0,69708.0,0.014353]
[1771060616358,0.0144,69713.0,69711.0,0.014352]
[1771060617164,0.0144,69717.0,69709.0,0.0144]
[1771060617458,0.0144,69717.0,69715.0,0.014351]
[1771060617762,0.0144,69718.0,69716.0,0.014351]
[1771060618158,0.0144,69718.0,69715.0,0.014351]
[1771060619363,0.0144,69718.0,69714.0,0.014352]
[1771060620259,0.0144,69718.0,69715.0,0.014351]
[1771060620559,0.0144,69718.0,69714.0,0.014352]
[1771060620750,0.0144,69718.0,69714.0,0.028704]
[1771060621061,0.0144,69718.0,69714.0,0.014352]
[1771060621359,0.014351,69719.0,69714.0,0.014352]
[1771060621661,0.014351,69719.0,69715.0,0.014351]
[1771060622055,0.028702,69719.0,69714.0,0.014352]
[1771060622249,0.014351,69716.0,69712.0,0.0144]
[1771060622559,0.014351,69718.0,69712.0,0.0144]
[1771060622757,0.014352,69714.0,69712.0,0.0144]
[1771060622960,0.014352,69715.0,69712.0,0.0144]
[1771060623563,0.028704,69715.0,69712.0,0.0144]
[1771060623767,0.014352,69715.0,69712.0,0.0144]
[1771060624264,0.014352,69715.0,69711.0,0.0144]
[1771060624463,0.014351,69716.0,69711.0,0.028752]
[1771060625360,0.014352,69715.0,69711.0,0.028752]
[1771060627067,0.0144,69720.0,69717.0,0.014351]
[1771060627367,0.02875,69722.0,69717.0,0.014351]
[1771060627570,0.0144,69722.0,69717.0,0.014351]
[1771060627761,0.02875,69722.0,69717.0,0.014351]
[1771060629361,0.0144,69722.0,69717.0,0.028702]
[1771060629566,0.0144,69722.0,69717.0,0.014351]
[1771060629865,0.014351,69718.0,69714.0,0.0144]
[1771060630166,0.014351,69718.0,69714.0,0.0139]
[1771060630167,0.014351,69717.0,69714.0,0.0139]
[1771060630367,0.014351,69720.0,69714.0,0.0144]
[1771060630561,0.014351,69719.0,69714.0,0.0144]
[1771060630865,0.014351,69716.0,69711.0,0.0144]
[1771060631065,0.028751,69716.0,69709.0,0.0144]
[1771060631468,0.014352,69714.0,69709.0,0.0144]
[1771060633766,0.014352,69714.0,69709.0,0.028753]
[1771060636975,0.014352,69713.0,69709.0,0.0144]
[1771060637572,0.4484323,69714.0,69694.0,0.46353625]
[1771060637774,0.014352,69711.0,69705.0,0.014354]
[1771060637970,0.014352,69711.0,69704.0,0.0144]
[1771060638163,0.014352,69711.0,69705.0,0.014354]
[1771060638468,0.014352,69711.0,69704.0,0.0144]